bitfinex/quotes_BTCUSD_20240905
["timestamp","ask_amount","ask_price","bid_price","bid_amount"]
[1725543027037,0.351794,56852.0,56843.0,0.1238]
[1725543027270,0.55081051,56883.0,56844.0,0.00351797]
[1725543027271,0.01491,56860.0,56844.0,0.00351797]
[1725543027498,0.01491,56860.0,56843.0,0.1238]
[1725543027499,0.7690282,56860.0,56859.0,0.011]
[1725543027734,1.1207692,56860.0,56859.0,0.011]
[1725543028189,1.4725102,56860.0,56859.0,0.011]
[1725543028411,0.528421,56860.0,56859.0,0.011]
[1725543028654,0.00081,56860.0,56859.0,0.011]
[1725543029124,0.00081,56860.0,56853.0,0.17589]
[1725543029350,0.00081,56860.0,56845.0,0.124]
[1725543029351,0.2406072,56854.0,56845.0,0.124]
[1725543029567,0.2406072,56849.0,56846.0,0.004]
[1725543029792,0.0141,56859.0,56840.0,0.124]
[1725543029793,0.2406072,56847.0,56840.0,0.124]
[1725543030008,0.4165182,56847.0,56843.0,0.175921]
[1725543030465,0.2406072,56856.0,56840.0,0.124]
[1725543030685,0.2406072,56856.0,56850.0,0.1759]
[1725543030898,0.351773,56855.0,56846.0,0.011]
[1725543031112,0.175896,56852.0,56848.0,0.175906]
[1725543031615,0.00778334,56854.0,56851.0,0.2406072]
[1725543031841,0.0135,56865.0,56853.0,0.527676]
[1725543031842,0.175877,56858.0,56853.0,0.527676]
[1725543032075,0.00081,56860.0,56852.0,0.0938]
[1725543032306,0.00081,56860.0,56854.0,0.2406072]
[1725543032532,0.00081,56860.0,56859.0,0.7682272]
[1725543032758,0.00081,56860.0,56859.0,1.4817212]
[1725543033013,0.00081,56860.0,56859.0,1.6816212]
[1725543033529,0.353551,56860.0,56859.0,0.1152]
[1725543033774,0.00081,56860.0,56859.0,0.1152]
[1725543034011,0.00081,56860.0,56848.0,0.03]
[1725543034012,0.00081,56860.0,56849.0,0.0923]
[1725543034270,0.00081,56860.0,56848.0,0.300205]
[1725543034271,0.0135,56859.0,56848.0,0.175906]
[1725543034532,0.0135,56859.0,56845.0,0.300215]
[1725543034533,0.351787,56853.0,56845.0,0.300215]
[1725543034747,0.0135,56859.0,56847.0,0.177537]
[1725543034748,0.175897,56852.0,56847.0,0.177537]
[1725543035000,0.175897,56852.0,56851.0,0.006]
[1725543035001,0.35179,56852.0,56851.0,0.006]
[1725543035244,0.879475,56852.0,56851.0,0.006]
[1725543035456,0.30017592,56857.0,56847.0,0.001628]
[1725543035687,0.893037,56848.0,56847.0,0.001628]
[1725543035920,0.893037,56848.0,56847.0,0.008628]
[1725543035921,1.244852,56848.0,56847.0,0.008628]
[1725543036658,1.244852,56848.0,56847.0,0.001628]
[1725543037112,0.527722,56848.0,56847.0,0.001628]
[1725543037338,0.879537,56848.0,56847.0,0.001628]
[1725543037564,3.12152073,56848.0,56847.0,1.1e-07]
[1725543037782,2.12801423,56848.0,56847.0,1.1e-07]
[1725543038067,1.7451913,56848.0,56847.0,1.1e-07]
[1725543038292,1.64018761,56848.0,56847.0,1.1e-07]
[1725543039059,1.244852,56848.0,56847.0,1.1e-07]
[1725543039299,0.879537,56848.0,56847.0,1.1e-07]
[1725543039804,0.527722,56848.0,56847.0,1.1e-07]
[1725543040049,0.879537,56848.0,56847.0,1.1e-07]
[1725543040305,0.531722,56848.0,56847.0,0.00100011]
[1725543040545,0.53906528,56848.0,56847.0,0.00100011]
[1725543040811,0.53506528,56848.0,56847.0,0.00100011]
[1725543041078,1.56302987,56848.0,56847.0,0.00100011]
[1725543041333,1.95250354,56848.0,56847.0,0.00100011]
[1725543041606,2.22745065,56848.0,56847.0,0.00100011]
[1725543041871,3.11126565,56848.0,56847.0,0.00100011]
[1725543042105,3.11126565,56848.0,56817.0,0.00163]
[1725543042106,0.176,56818.0,56817.0,0.00163]
[1725543042377,1.232003,56818.0,56817.0,0.00163]
[1725543042888,2.24364791,56818.0,56817.0,0.00163]
[1725543043115,1.23978391,56818.0,56817.0,0.00163]
[1725543043887,2.01341191,56818.0,56817.0,0.00163]
[1725543044127,1.66141091,56818.0,56817.0,0.00163]
[1725543044618,1.62819991,56818.0,56817.0,0.00263]
[1725543045125,1.242003,56818.0,56817.0,0.00263]
[1725543045364,1.495112,56818.0,56817.0,0.00263]
[1725543045604,1.242003,56818.0,56817.0,0.00263]
[1725543046089,1.935098,56818.0,56817.0,0.00263]
[1725543046344,1.242003,56818.0,56817.0,0.00163]
[1725543046822,1.256003,56818.0,56817.0,0.00163]
[1725543047295,1.242003,56818.0,56817.0,0.00163]
[1725543047782,1.252003,56818.0,56817.0,0.00163]
[1725543048682,1.88568166,56818.0,56817.0,0.00163]
[1725543048909,1.839735,56818.0,56817.0,0.00163]
[1725543049348,2.191736,56818.0,56817.0,0.00163]
[1725543050022,1.839735,56818.0,56817.0,0.00163]
[1725543050271,1.838735,56818.0,56817.0,0.00163]
[1725543050760,1.860735,56818.0,56817.0,0.00163]
[1725543050981,2.211736,56818.0,56817.0,0.00163]
[1725543051438,2.211736,56818.0,56816.0,0.00044]
[1725543051439,1.263024,56817.0,56816.0,0.00044]
[1725543051667,1.263024,56817.0,56803.0,0.00163]
[1725543051668,0.54063,56804.0,56803.0,0.00163]
[1725543051905,1.92706692,56804.0,56803.0,0.00163]
[1725543052127,2.27915392,56804.0,56803.0,0.00163]
[1725543052355,7.32915392,56804.0,56803.0,0.00163]
[1725543052609,6.95058192,56804.0,56803.0,0.00163]
[1725543052848,6.95058192,56804.0,56775.0,0.1211]
[1725543052849,0.528363,56779.0,56775.0,0.1211]
[1725543053132,0.528363,56779.0,56768.0,0.001628]
[1725543053133,1.53302292,56779.0,56768.0,0.001628]
[1725543053375,1.53302292,56779.0,56768.0,0.00515088]
[1725543053376,0.880605,56779.0,56768.0,0.00515088]
[1725543053607,0.880605,56779.0,56778.0,0.21322]
[1725543053608,0.176121,56779.0,56778.0,0.21322]
[1725543054064,1.18078092,56779.0,56778.0,0.21322]
[1725543054332,1.53302292,56779.0,56778.0,0.00162]
[1725543054565,1.232847,56779.0,56778.0,0.00162]
[1725543054816,1.53302292,56779.0,56778.0,0.00162]
[1725543055303,0.528363,56779.0,56778.0,0.12082]
[1725543055531,0.35221,56785.0,56779.0,0.0957]
[1725543055807,0.35217,56791.0,56779.0,0.0957]
[1725543056046,0.352183,56789.0,56780.0,0.1188]
[1725543056286,0.352183,56789.0,56784.0,0.176104]
[1725543056287,0.176091,56789.0,56784.0,0.176104]
[1725543056536,0.32560134,56800.0,56785.0,0.1168]
[1725543056537,0.352142,56796.0,56785.0,0.1168]
[1725543056782,0.30017592,56800.0,56785.0,0.1168]
[1725543056783,0.176099,56786.0,56785.0,0.1168]
[1725543057042,0.880497,56786.0,56785.0,0.1168]
[1725543057297,0.880497,56786.0,56785.0,0.1068]
[1725543057298,0.176099,56786.0,56785.0,0.1068]
[1725543057553,0.528298,56786.0,56785.0,0.1068]
[1725543057766,0.176099,56786.0,56785.0,0.0978]
[1725543058253,0.352175,56790.0,56785.0,0.0978]
[1725543058254,0.352179,56790.0,56785.0,0.0978]
[1725543058759,0.176099,56786.0,56785.0,0.0978]
[1725543058984,0.528298,56786.0,56785.0,0.0978]
[1725543059464,0.176099,56786.0,56785.0,0.0978]
[1725543059942,0.176097,56787.0,56785.0,0.0978]
[1725543060173,0.176097,56787.0,56785.0,0.1018]
[1725543060174,0.001,56786.0,56785.0,0.1018]
[1725543060458,0.001,56786.0,56785.0,0.277902]
[1725543060699,0.001,56786.0,56785.0,0.202]
[1725543060928,0.529298,56786.0,56785.0,0.202]
[1725543061161,0.352144,56795.0,56785.0,0.193]
[1725543061399,0.070602,56801.0,56786.0,0.4715177]
[1725543061660,0.070602,56801.0,56785.0,0.0952]
[1725543061661,0.070602,56801.0,56787.0,0.1235]
[1725543061923,0.176093,56788.0,56787.0,0.1235]
[1725543062204,0.30017592,56806.0,56787.0,0.1235]
[1725543062449,0.5,56823.0,56786.0,0.00352178]
[1725543062450,0.070588,56811.0,56803.0,0.1235]
[1725543062729,0.070588,56811.0,56810.0,0.749875]
[1725543062990,0.52650515,56832.0,56811.0,0.1235]
[1725543063274,0.61483845,56832.0,56820.0,0.124]
[1725543063466,0.070565,56832.0,56821.0,0.0975]
[1725543063707,0.351894,56836.0,56821.0,0.0975]
[1725543063708,0.351894,56836.0,56826.0,0.35195]
[1725543063941,0.01,56851.0,56827.0,0.29997]
[1725543063942,0.30017592,56844.0,56827.0,0.29997]
[1725543064181,0.04928832,56847.0,56827.0,0.29997]
[1725543064182,0.35757224,56845.0,56827.0,0.112]
[1725543064416,0.351903,56834.0,56827.0,0.112]
[1725543064657,0.351916,56832.0,56827.0,0.112]
[1725543064892,0.351865,56840.0,56828.0,0.351938]
[1725543065006,0.39007224,56850.0,56827.0,0.112]
[1725543065007,0.01,56836.0,56827.0,0.112]
[1725543065236,0.175958,56832.0,56827.0,0.287969]
[1725543065446,0.351916,56832.0,56827.0,0.112]
[1725543065657,0.002,56836.0,56827.0,0.112]
[1725543065887,0.351895,56835.0,56827.0,0.112]
[1725543066087,0.175961,56831.0,56827.0,0.112]
[1725543066295,0.175963,56830.0,56827.0,0.112]
[1725543066507,0.351906,56834.0,56827.0,0.112]
[1725543066730,0.175955,56833.0,56827.0,0.112]
[1725543066935,0.175955,56833.0,56821.0,0.449477]
[1725543066936,0.351844,56844.0,56831.0,0.35192]
[1725543067181,0.35757224,56859.0,56835.0,0.1146]
[1725543067182,0.000814,56854.0,56835.0,0.1146]
[1725543067402,0.000814,56854.0,56837.0,0.175939]
[1725543067403,0.070542,56851.0,56837.0,0.175939]
[1725543067625,0.000814,56854.0,56839.0,0.175934]
[1725543067835,0.175926,56843.0,56836.0,0.00351856]
[1725543068052,0.351819,56848.0,56836.0,0.00351856]
[1725543068275,0.175924,56843.0,56838.0,0.175938]
[1725543068494,0.071351,56854.0,56835.0,0.1146]
[1725543068495,0.35757224,56853.0,56835.0,0.1146]
[1725543068703,0.351855,56842.0,56835.0,0.1146]
[1725543068914,0.527798,56840.0,56839.0,0.001]
[1725543069338,0.351839,56845.0,56839.0,0.001]
[1725543069551,0.527796,56840.0,56839.0,0.001]
[1725543069763,1.231524,56840.0,56839.0,0.001]
[1725543069983,0.87966,56840.0,56839.0,0.001]
[1725543070214,0.07054,56852.0,56835.0,0.1146]
[1725543070427,0.07054,56852.0,56835.0,0.1156]
[1725543070667,0.175901,56850.0,56846.0,0.175913]
[1725543070904,0.175901,56850.0,56844.0,0.1234]
[1725543070905,0.351804,56850.0,56844.0,0.1234]
[1725543071113,0.000814,56854.0,56844.0,0.1234]
[1725543071114,0.175916,56845.0,56844.0,0.1234]
[1725543071318,0.351786,56853.0,56844.0,0.1234]
[1725543071319,0.351798,56851.0,56844.0,0.1234]
[1725543071539,0.175907,56849.0,56844.0,0.1234]
[1725543071747,0.351797,56851.0,56844.0,0.1234]
[1725543071956,0.175909,56848.0,56844.0,0.1234]
[1725543072180,0.351803,56850.0,56844.0,0.1234]
[1725543072418,0.175908,56848.0,56844.0,0.1224]
[1725543072626,0.000814,56854.0,56844.0,0.1224]
[1725543072850,0.000814,56854.0,56853.0,0.175892]
[1725543073066,0.000814,56854.0,56853.0,0.527676]
[1725543073278,0.000814,56854.0,56853.0,0.521676]
[1725543073497,0.000814,56854.0,56851.0,0.175895]
[1725543073719,0.000814,56854.0,56848.0,0.351814]
[1725543073720,0.004,56851.0,56848.0,0.351814]
[1725543073935,0.004,56851.0,56850.0,0.527703]
[1725543074346,0.000814,56854.0,56851.0,0.175898]
[1725543074565,0.000814,56854.0,56853.0,0.013]
[1725543074566,0.001814,56854.0,56853.0,0.013]
[1725543074795,0.001814,56854.0,56853.0,0.89246]
[1725543075009,0.000814,56854.0,56853.0,0.97936]
[1725543075226,0.001814,56854.0,56853.0,0.97936]
[1725543075433,0.000814,56854.0,56853.0,1.446444]
[1725543075643,0.01,56880.0,56853.0,1.446444]
[1725543075644,0.00081,56874.0,56859.0,0.879367]
[1725543075856,0.351667,56872.0,56859.0,1.091567]
[1725543076126,0.351661,56873.0,56859.0,1.443314]
[1725543076357,0.527494,56873.0,56859.0,1.443314]
[1725543076562,0.00081,56874.0,56859.0,1.454314]
[1725543076789,0.00081,56874.0,56873.0,1.10005]
[1725543077699,0.00081,56874.0,56873.0,1.45762224]
[1725543077916,0.00081,56874.0,56873.0,1.80928224]
[1725543078126,0.00081,56875.0,56874.0,0.529481]
[1725543078337,0.00081,56893.0,56889.0,0.527341]
[1725543078548,0.00081,56893.0,56889.0,1.099802]
[1725543078974,0.00081,56900.0,56899.0,0.01]
[1725543079223,0.00081,56900.0,56899.0,0.39665]
[1725543079441,0.00081,56900.0,56899.0,0.2209]
[1725543079867,0.176556,56900.0,56899.0,0.2209]
[1725543080081,0.00081,56900.0,56899.0,0.2209]
[1725543080286,0.00081,56900.0,56893.0,0.1215]
[1725543080512,0.878825,56894.0,56893.0,0.1215]
[1725543080941,0.352308,56900.0,56893.0,0.1215]
[1725543081173,0.175757,56897.0,56893.0,0.1215]
[1725543081396,0.177559,56900.0,56899.0,0.023]
[1725543081624,0.00181,56900.0,56899.0,0.023]
[1725543081834,0.351471,56904.0,56899.0,0.012]
[1725543082046,0.175746,56900.0,56899.0,0.012]
[1725543082500,0.175742,56902.0,56899.0,0.012]
[1725543082728,0.175746,56900.0,56899.0,0.012]
[1725543083160,0.351472,56904.0,56899.0,0.012]
[1725543083379,0.175746,56900.0,56899.0,0.012]
[1725543083601,0.53494175,56900.0,56899.0,0.012]
[1725543083834,0.18344875,56900.0,56899.0,0.02]
[1725543084067,0.18344875,56900.0,56899.0,0.008]
[1725543084283,0.00870275,56900.0,56899.0,0.39865]
[1725543084491,0.00870275,56900.0,56899.0,0.2229]
[1725543084492,0.176746,56900.0,56899.0,0.2229]
[1725543084707,0.527239,56900.0,56899.0,0.1347]
[1725543084929,0.879732,56900.0,56899.0,0.1477]
[1725543085151,0.879732,56900.0,56899.0,0.1357]
[1725543085382,0.53494175,56900.0,56899.0,0.1227]
[1725543085629,0.53494175,56900.0,56880.0,0.02]
[1725543085630,0.001,56900.0,56888.0,0.0997]
[1725543085865,0.001,56900.0,56870.0,0.0997]
[1725543085866,0.35757224,56890.0,56870.0,0.0997]
[1725543086078,0.0481,56893.0,56878.0,0.52650515]
[1725543086079,0.527434,56879.0,56878.0,0.52650515]
[1725543086308,0.351612,56881.0,56870.0,0.0991]
[1725543086526,0.35757224,56888.0,56870.0,0.099]
[1725543086960,0.2588,56887.0,56870.0,0.099]
[1725543087170,0.35167,56872.0,56864.0,0.1245]
[1725543087406,0.351635,56877.0,56865.0,0.52650515]
[1725543087606,0.351648,56875.0,56865.0,0.351706]
[1725543087816,0.175829,56874.0,56865.0,0.351706]
[1725543088020,0.351648,56875.0,56866.0,0.17585]
[1725543088231,0.351648,56875.0,56870.0,0.0005]
[1725543088644,0.351614,56881.0,56866.0,0.00351666]
[1725543088854,0.35757224,56888.0,56866.0,0.00351666]
[1725543088855,0.35757224,56888.0,56871.0,0.351672]
[1725543089066,0.35757224,56888.0,56865.0,0.014]
[1725543089279,0.175813,56879.0,56873.0,0.175828]
[1725543089488,0.175822,56876.0,56870.0,0.175837]
[1725543089694,0.070493,56889.0,56871.0,0.351671]
[1725543089917,0.070493,56889.0,56865.0,0.014]
[1725543090131,0.351607,56882.0,56865.0,0.014]
[1725543090336,0.351607,56882.0,56859.0,0.021]
[1725543090337,0.175842,56869.0,56868.0,0.1192]
[1725543090760,0.175838,56871.0,56868.0,0.1192]
[1725543090967,0.175829,56874.0,56869.0,0.175842]
[1725543091176,0.175831,56873.0,56869.0,0.175842]
[1725543091426,0.000815,56873.0,56869.0,0.351684]
[1725543091596,0.175842,56869.0,56868.0,0.1192]
[1725543092254,0.000815,56873.0,56860.0,0.0917]
[1725543092255,0.175865,56862.0,56860.0,0.0917]
[1725543092479,0.000815,56873.0,56855.0,0.1216]
[1725543092480,0.527611,56860.0,56855.0,0.1216]
[1725543092745,0.527611,56860.0,56853.0,0.0917]
[1725543092746,1.94040624,56860.0,56849.0,0.1216]
[1725543092944,1.72138524,56860.0,56849.0,0.1216]
[1725543093160,1.59006524,56860.0,56849.0,0.1216]
[1725543093569,1.59006524,56860.0,56846.0,0.0978]
[1725543093570,1.99253824,56860.0,56846.0,0.0978]
[1725543093789,1.99253824,56860.0,56832.0,0.87841815]
[1725543093790,2.6023395,56860.0,56836.0,0.1229]
[1725543094024,2.42777924,56860.0,56836.0,0.298843]
[1725543094273,2.04503824,56860.0,56837.0,0.00351861]
[1725543094506,2.04503824,56860.0,56836.0,0.1229]
[1725543094507,1.81187524,56860.0,56846.0,0.175912]
[1725543094733,1.231093,56860.0,56853.0,0.1251]
[1725543094975,1.231093,56860.0,56851.0,0.1251]
[1725543095258,1.231093,56860.0,56859.0,0.00263]
[1725543095666,1.232093,56860.0,56859.0,0.00163]
[1725543096133,1.231093,56860.0,56859.0,0.00163]
[1725543096383,3.40900524,56860.0,56859.0,0.00163]
[1725543096596,3.18005256,56860.0,56859.0,0.00263]
[1725543096802,3.13816424,56860.0,56859.0,0.00100011]
[1725543097020,3.48390524,56860.0,56859.0,1.1e-07]
[1725543097237,2.02630624,56860.0,56859.0,1.1e-07]
[1725543097482,2.02530624,56860.0,56859.0,0.00500011]
[1725543097728,2.02530624,56860.0,56859.0,1.1e-07]
[1725543098167,2.37704724,56860.0,56859.0,0.00100011]
[1725543098583,2.41993556,56860.0,56859.0,0.00100011]
[1725543098787,2.41993556,56860.0,56859.0,1.1e-07]
[1725543099055,2.06719456,56860.0,56859.0,1.1e-07]
[1725543099304,2.06719456,56860.0,56859.0,0.00100011]
[1725543099305,2.03930624,56860.0,56859.0,0.00100011]
[1725543099562,2.02530624,56860.0,56859.0,1.1e-07]
[1725543099804,2.37704724,56860.0,56859.0,1.1e-07]
[1725543100051,2.03930624,56860.0,56859.0,0.00100011]
[1725543100320,2.02530624,56860.0,56859.0,1.1e-07]
[1725543100579,2.02530624,56860.0,56859.0,0.00100011]
[1725543100580,2.03930624,56860.0,56859.0,0.00100011]
[1725543100836,1.95180624,56860.0,56859.0,1.1e-07]
[1725543101073,2.01369456,56860.0,56859.0,1.1e-07]
[1725543101317,2.55499582,56860.0,56859.0,0.00100011]
[1725543101552,2.70556544,56860.0,56859.0,0.00100011]
[1725543101814,2.51800518,56860.0,56859.0,1.1e-07]
[1725543102338,2.54400518,56860.0,56859.0,0.00200011]
[1725543102568,2.50111686,56860.0,56859.0,0.00200011]
[1725543102786,2.48911686,56860.0,56859.0,0.00100011]
[1725543103031,2.03930624,56860.0,56859.0,0.00100011]
[1725543103284,1.95580624,56860.0,56859.0,0.00100011]
[1725543103521,2.53985024,56860.0,56859.0,0.00100011]
[1725543103753,1.596834,56860.0,56859.0,0.00100011]
[1725543104264,1.582834,56860.0,56859.0,1.1e-07]
[1725543104537,1.243093,56860.0,56859.0,0.12140011]
[1725543104788,0.891352,56860.0,56859.0,0.12140011]
[1725543105055,0.879352,56860.0,56859.0,0.12040011]
[1725543105553,0.887352,56860.0,56859.0,0.12140011]
[1725543105794,0.901352,56860.0,56859.0,0.12240011]
[1725543106020,0.879352,56860.0,56859.0,0.12040011]
[1725543106284,1.231093,56860.0,56859.0,0.12040011]
[1725543106526,1.238093,56860.0,56859.0,0.12040011]
[1725543106787,1.234093,56860.0,56859.0,0.12040011]
[1725543107290,1.238093,56860.0,56859.0,0.12040011]
[1725543107764,1.235093,56860.0,56859.0,0.12040011]
[1725543108020,0.883352,56860.0,56859.0,0.12040011]
[1725543108249,0.886352,56860.0,56859.0,0.12040011]
[1725543108489,0.534611,56860.0,56859.0,0.12040011]
[1725543108961,0.883352,56860.0,56859.0,0.12040011]
[1725543109230,1.236093,56860.0,56859.0,0.12040011]
[1725543109674,1.232093,56860.0,56859.0,0.12040011]
[1725543109902,1.233093,56860.0,56859.0,0.12040011]
[1725543110143,1.584834,56860.0,56859.0,1.1e-07]
[1725543110377,1.233093,56860.0,56859.0,1.1e-07]
[1725543110840,1.233093,56860.0,56859.0,0.00200011]
[1725543111087,1.95240624,56860.0,56859.0,0.00200011]
[1725543113874,2.40881755,56860.0,56859.0,0.001]
[1725543114098,0.879645,56841.0,56840.0,0.1177]
[1725543115399,0.175988,56822.0,56821.0,0.2087]
[1725543115648,0.175988,56822.0,56817.0,0.11893]
[1725543115649,0.176,56818.0,56817.0,0.11893]
[1725543115890,0.880002,56818.0,56817.0,0.11893]
[1725543116131,0.528001,56818.0,56817.0,0.11893]
[1725543116816,1.232003,56818.0,56817.0,0.11893]
[1725543117048,1.232003,56818.0,56817.0,0.00163]
[1725543117049,3.143092,56818.0,56817.0,0.00163]
[1725543117286,5.596302,56818.0,56817.0,0.00163]
[1725543117524,5.596302,56818.0,56802.0,0.00162]
[1725543117525,1.242329,56803.0,56802.0,0.00162]
[1725543117754,4.519644,56803.0,56802.0,0.00162]
[1725543117985,4.453609,56803.0,56802.0,0.00162]
[1725543118263,4.452609,56803.0,56802.0,0.00162]
[1725543118536,4.45358582,56803.0,56802.0,0.00162]
[1725543118765,4.45358582,56803.0,56785.0,0.00163]
[1725543118766,1.616895,56786.0,56785.0,0.00163]
[1725543119015,1.969094,56786.0,56785.0,0.00163]
[1725543119263,1.969094,56786.0,56768.0,0.52813315]
[1725543119264,1.06569324,56779.0,56768.0,0.52813315]
[1725543119512,1.06569324,56779.0,56765.0,0.501628]
[1725543119513,1.06569324,56779.0,56765.0,0.44722548]
[1725543119514,0.384323,56766.0,56765.0,0.44722548]
[1725543119754,1.060531,56761.0,56739.0,0.1203]
[1725543119982,0.706211,56750.0,56749.0,0.46689003]
[1725543120207,0.706211,56750.0,56745.0,0.00162]
[1725543120208,0.913087,56748.0,56745.0,0.00162]
[1725543120434,1.617957,56748.0,56745.0,0.00162]
[1725543120657,4.46012,56748.0,56745.0,0.00162]
[1725543120903,2.067242,56748.0,56745.0,0.00162]
[1725543121139,1.502938,56748.0,56747.0,0.1316773]
[1725543121371,1.887373,56748.0,56747.0,0.0112773]
[1725543121591,2.253808,56748.0,56747.0,0.0112773]
[1725543122108,1.901373,56748.0,56747.0,0.0112773]
[1725543122336,1.900373,56748.0,56747.0,0.0112773]
[1725543122558,1.880373,56748.0,56747.0,0.0112773]
[1725543123216,1.890373,56748.0,56747.0,0.0112773]
[1725543123457,1.887373,56748.0,56747.0,0.0112773]
[1725543123692,1.898373,56748.0,56747.0,0.0112773]
[1725543123916,1.898373,56748.0,56724.0,0.00023917]
[1725543123917,0.352553,56729.0,56724.0,0.00023917]
[1725543124156,0.881382,56729.0,56724.0,0.00023917]
[1725543124389,1.18967,56729.0,56724.0,0.00023917]
[1725543124615,1.373639,56729.0,56724.0,0.00023917]
[1725543124839,1.726192,56729.0,56724.0,0.00023917]
[1725543125095,2.28386612,56729.0,56724.0,0.00023917]
[1725543125317,2.108745,56729.0,56724.0,0.00023917]
[1725543125543,2.108745,56729.0,56712.0,0.1176]
[1725543125544,1.89172324,56729.0,56712.0,0.1176]
[1725543125774,1.87069824,56729.0,56712.0,0.1176]
[1725543126669,1.92745911,56729.0,56712.0,0.1176]
[1725543126893,1.513126,56729.0,56712.0,0.1176]
[1725543127138,1.513126,56729.0,56728.0,0.12892]
[1725543127139,1.511098,56729.0,56728.0,0.12892]
[1725543127371,1.235935,56729.0,56728.0,0.12892]
[1725543127589,1.235935,56729.0,56728.0,0.23142]
[1725543127590,0.883382,56729.0,56728.0,0.23142]
[1725543127815,1.235935,56729.0,56728.0,0.23142]
[1725543128043,0.530829,56729.0,56728.0,0.23142]
[1725543128304,0.177276,56729.0,56728.0,0.23142]
[1725543128537,0.001,56729.0,56728.0,0.23142]
[1725543128990,0.004,56729.0,56728.0,0.23142]
[1725543129215,0.352499,56738.0,56728.0,0.23142]
[1725543129463,0.35252,56735.0,56729.0,0.1179]
[1725543129742,0.070671,56744.0,56729.0,0.1169]
[1725543129743,0.176273,56730.0,56729.0,0.1169]
[1725543129977,0.177276,56729.0,56728.0,0.00162]
[1725543130206,0.88149,56722.0,56721.0,0.00162]
[1725543130447,3.35810924,56722.0,56721.0,0.00162]
[1725543130675,2.017807,56722.0,56721.0,0.00162]
[1725543130899,2.10241077,56722.0,56721.0,0.00162]
[1725543131352,2.027807,56722.0,56721.0,0.00162]
[1725543131841,2.4125575,56722.0,56721.0,0.00162]
[1725543132108,2.047807,56722.0,56721.0,0.00162]
[1725543132334,0.750356,56722.0,56721.0,0.00162]
[1725543132557,0.528894,56722.0,56721.0,0.09692]
[1725543132791,0.88149,56722.0,56721.0,0.22542]
[1725543133018,0.528894,56722.0,56721.0,0.22542]
[1725543133255,0.352561,56728.0,56721.0,0.22542]
[1725543133530,0.176296,56723.0,56721.0,0.22642]
[1725543133754,0.35258,56725.0,56721.0,0.22642]
[1725543133755,0.352585,56724.0,56721.0,0.22642]
[1725543133983,0.176293,56724.0,56721.0,0.22542]
[1725543134443,0.352558,56729.0,56723.0,0.1213]
[1725543134659,0.362444,56747.0,56723.0,0.1213]
[1725543134660,0.001,56730.0,56723.0,0.1213]
[1725543134900,0.176292,56724.0,56723.0,0.1213]
[1725543135160,0.423154,56741.0,56723.0,0.1213]
[1725543135161,0.070675,56741.0,56723.0,0.1213]
[1725543135389,0.352382,56757.0,56738.0,0.1213]
[1725543135647,0.52650515,56758.0,56738.0,0.1213]
[1725543135648,0.528736,56739.0,56738.0,0.1213]
[1725543135898,0.176241,56741.0,56738.0,0.1213]
[1725543136153,0.070664,56750.0,56738.0,0.1213]
[1725543136154,0.070664,56750.0,56742.0,0.176234]
[1725543136407,0.070664,56750.0,56745.0,0.12]
[1725543136624,0.352364,56760.0,56747.0,0.12]
[1725543136625,0.176206,56752.0,56747.0,0.12]
[1725543136854,0.352296,56771.0,56747.0,0.296218]
[1725543136855,0.176204,56753.0,56747.0,0.296218]
[1725543137082,0.176213,56750.0,56747.0,0.12]
[1725543137377,0.01092319,56768.0,56747.0,0.12]
[1725543137613,0.001,56777.0,56746.0,0.447246]
[1725543137614,0.176187,56758.0,56755.0,0.2148]
[1725543137848,0.176189,56758.0,56755.0,0.2148]
[1725543138074,0.176192,56757.0,56755.0,0.2148]
[1725543138299,0.35757224,56775.0,56755.0,0.2148]
[1725543138300,0.176192,56756.0,56755.0,0.2148]
[1725543138608,0.528577,56756.0,56755.0,0.2148]
[1725543138805,0.352337,56764.0,56755.0,0.567186]
[1725543139035,0.070639,56777.0,56759.0,0.352364]
[1725543139270,0.176163,56766.0,56762.0,0.1226]
[1725543139521,0.176157,56768.0,56763.0,0.1226]
[1725543139749,0.17616,56767.0,56763.0,0.1226]
[1725543140005,0.176167,56764.0,56763.0,0.1226]
[1725543140227,0.880837,56764.0,56763.0,0.1226]
[1725543140447,0.176167,56764.0,56763.0,0.1096]
[1725543140673,0.176167,56764.0,56763.0,0.1086]
[1725543140674,0.880837,56764.0,56763.0,0.1086]
[1725543141136,0.880837,56764.0,56763.0,0.1106]
[1725543141363,0.528502,56764.0,56763.0,0.1106]
[1725543141585,0.501,56785.0,56763.0,0.1106]
[1725543141586,0.35757224,56781.0,56763.0,0.1186]
[1725543141815,0.176167,56764.0,56763.0,0.1186]
[1725543142038,0.35757224,56781.0,56763.0,0.294768]
[1725543142039,0.176153,56769.0,56763.0,0.294768]
[1725543142272,0.176162,56766.0,56763.0,0.1186]
[1725543142493,0.176167,56764.0,56763.0,0.1186]
[1725543142737,0.35757224,56781.0,56763.0,0.1186]
[1725543142738,0.352271,56775.0,56764.0,0.352335]
[1725543142963,0.352271,56775.0,56763.0,0.008]
[1725543142964,0.352232,56781.0,56765.0,0.352328]
[1725543143191,0.070631,56783.0,56763.0,0.015]
[1725543143192,0.528502,56764.0,56763.0,0.015]
[1725543143422,0.528502,56764.0,56763.0,0.008]
[1725543143681,0.176167,56764.0,56763.0,0.008]
[1725543143899,0.176167,56764.0,56763.0,0.1312]
[1725543144133,0.528502,56764.0,56763.0,0.1272]
[1725543144620,0.352313,56768.0,56763.0,0.1342]
[1725543144621,0.352316,56768.0,56763.0,0.1342]
[1725543144840,0.176167,56764.0,56763.0,0.1342]
[1725543145024,0.528502,56764.0,56763.0,0.1412]
[1725543145304,0.880837,56764.0,56763.0,0.1412]